bitfinex-derivatives/quotes_BTCF0:USTF0_20250724
["timestamp","ask_amount","ask_price","bid_price","bid_amount"]
[1753375705021,0.55770075,118540.0,118530.0,1.51137797]
[1753375705227,0.62757075,118540.0,118530.0,1.51137797]
[1753375709532,0.62757075,118540.0,118530.0,1.15268162]
[1753375709832,0.62757075,118540.0,118530.0,1.57741533]
[1753375710128,0.79620185,118540.0,118530.0,0.59819898]
[1753375710433,0.79620185,118540.0,118530.0,1.16117797]
[1753375710628,0.79620185,118540.0,118530.0,0.35735879]
[1753375710820,0.79620185,118540.0,118510.0,0.01718935]
[1753375710821,0.5995895,118520.0,118510.0,0.01718935]
[1753375711027,0.5995895,118520.0,118490.0,0.2244089]
[1753375711028,0.646858,118500.0,118490.0,0.61173745]
[1753375711225,0.66573811,118500.0,118490.0,1.57201745]
[1753375711437,0.62332051,118500.0,118490.0,1.57201745]
[1753375712227,0.79200851,118500.0,118490.0,1.57201745]
[1753375712633,0.79200851,118500.0,118490.0,0.96028]
[1753375712833,0.79300851,118500.0,118490.0,0.67028]
[1753375713130,0.3131322,118490.0,118480.0,1.28124894]
[1753375713336,0.66575231,118490.0,118480.0,1.96148894]
[1753375713636,0.79253552,118490.0,118480.0,2.13020534]
[1753375713828,0.79253552,118490.0,118480.0,2.48890169]
[1753375714437,0.79366382,118490.0,118480.0,2.48890169]
[1753375714830,0.79366382,118490.0,118480.0,1.22502169]
[1753375715226,0.77365541,118490.0,118480.0,0.86632534]
[1753375715435,0.79365194,118490.0,118480.0,1.22602169]
[1753375717230,0.62494974,118490.0,118480.0,1.22602169]
[1753375717836,0.79365104,118490.0,118480.0,0.86732534]
[1753375718037,0.79365104,118490.0,118480.0,1.22602169]
[1753375718337,0.62494974,118490.0,118480.0,1.22602169]
[1753375718526,0.79365114,118490.0,118480.0,1.22802169]
[1753375718935,0.62494974,118490.0,118480.0,1.22802169]
[1753375719135,0.62494974,118490.0,118480.0,1.21073275]
[1753375719335,0.79365114,118490.0,118480.0,0.8520364]
[1753375719537,0.79365114,118490.0,118480.0,1.21073275]
[1753375721338,0.62494974,118490.0,118480.0,1.21073275]
[1753375722636,0.79365094,118490.0,118480.0,1.21073275]
[1753375722838,0.62494974,118490.0,118480.0,1.21073275]
[1753375726043,0.62494974,118490.0,118480.0,0.8520364]
[1753375726242,0.62494974,118490.0,118480.0,1.21073275]
[1753375727337,0.19401974,118490.0,118480.0,1.5694291]
[1753375727539,0.14677974,118490.0,118480.0,1.8794291]
[1753375727744,0.04659,118500.0,118490.0,0.1687016]
[1753375727940,0.06652315,118500.0,118490.0,0.55739795]
[1753375728140,0.19381501,118500.0,118490.0,0.55739795]
[1753375729137,0.14722501,118500.0,118490.0,1.45759795]
[1753375729337,0.04659,118510.0,118500.0,0.1686875]
[1753375729539,0.22001,118520.0,118510.0,0.1686733]
[1753375729734,0.22001,118520.0,118510.0,1.14752965]
[1753375729939,0.34587893,118520.0,118510.0,1.14752965]
[1753375730235,0.51453803,118520.0,118510.0,1.14752965]
[1753375730437,0.66300803,118520.0,118510.0,1.14752965]
[1753375730644,0.76974803,118520.0,118510.0,1.14752965]
[1753375730840,0.60308893,118520.0,118510.0,1.14752965]
[1753375731840,0.25525893,118520.0,118510.0,1.14752965]
[1753375732044,0.17445893,118520.0,118510.0,1.47752965]
[1753375732244,0.17445893,118520.0,118510.0,1.836226]
[1753375732537,0.12786893,118520.0,118510.0,1.1467884]
[1753375732746,0.12986893,118520.0,118510.0,1.50548475]
[1753375733147,0.12986893,118520.0,118510.0,1.8641811]
[1753375733949,0.12786893,118520.0,118510.0,1.8641811]
[1753375734248,0.12786893,118520.0,118510.0,1.50548475]
[1753375734449,0.12786893,118520.0,118510.0,1.1467884]
[1753375734643,0.17445893,118520.0,118510.0,1.50548475]
[1753375734842,0.17445893,118520.0,118510.0,1.50648475]
[1753375735043,0.17245893,118520.0,118510.0,1.50648475]
[1753375736139,0.17245893,118520.0,118510.0,1.50848475]
[1753375741559,0.62148538,118520.0,118510.0,1.1497884]
[1753375741760,0.62148538,118520.0,118510.0,1.50848475]
[1753375742754,0.19285538,118520.0,118510.0,1.1497884]
[1753375742957,0.19285538,118520.0,118510.0,1.50848475]
[1753375744856,0.14626538,118520.0,118510.0,1.50848475]
[1753375745856,0.14626538,118520.0,118510.0,1.8671811]
[1753375746053,0.12586893,118520.0,118510.0,1.8671811]
[1753375746358,0.09592123,118520.0,118510.0,1.8671811]
[1753375748162,0.09592123,118520.0,118510.0,1.1497884]
[1753375748350,0.09592123,118520.0,118510.0,1.8671811]
[1753375749561,0.09592123,118520.0,118510.0,2.1337811]
[1753375749756,0.05132223,118520.0,118510.0,2.1337811]
[1753375749954,3e-08,118520.0,118510.0,2.1337811]
[1753375750351,0.47986,118550.0,118540.0,0.1686305]
[1753375750554,0.06791038,118550.0,118540.0,1.17692685]
[1753375750759,0.19459056,118550.0,118540.0,1.17692685]
[1753375751058,0.19459056,118550.0,118540.0,1.14692685]
[1753375751258,0.19459056,118550.0,118540.0,1.47692685]
[1753375751854,0.19659056,118550.0,118540.0,1.47692685]
[1753375752853,0.62893056,118550.0,118540.0,1.47692685]
[1753375753459,0.62893624,118550.0,118540.0,1.47692685]
[1753375753661,0.63093624,118550.0,118540.0,1.47692685]
[1753375754865,0.62893624,118550.0,118540.0,1.47692685]
[1753375757262,0.19659624,118550.0,118540.0,1.47692685]
[1753375758356,0.19459624,118550.0,118540.0,1.47692685]
[1753375758756,0.14707624,118550.0,118540.0,1.8356232]
[1753375759159,0.14707624,118550.0,118540.0,1.47692685]
[1753375760166,0.14707624,118550.0,118540.0,2.74080685]
[1753375761559,0.19459624,118550.0,118540.0,2.74080685]
[1753375763668,0.33670739,118570.0,118540.0,2.9308727]
[1753375763965,0.48433798,118570.0,118560.0,0.8859954]
[1753375764166,0.24012798,118570.0,118560.0,1.85228742]
[1753375764671,0.20828758,118570.0,118560.0,1.85228742]
[1753375764869,0.3040673,118590.0,118580.0,0.1706342]
[1753375765066,0.24421,118590.0,118580.0,1.19557965]
[1753375765265,0.61863207,118590.0,118580.0,1.18557965]
[1753375765669,0.61863207,118590.0,118580.0,0.8268833]
[1753375765971,0.61863207,118590.0,118580.0,1.18557965]
[1753375766477,0.61963207,118590.0,118580.0,1.18557965]
[1753375766777,0.66715207,118590.0,118580.0,1.18557965]
[1753375767371,0.66715207,118590.0,118580.0,1.19670139]
[1753375767576,0.58710207,118590.0,118580.0,1.19464139]
[1753375767776,0.66715207,118590.0,118580.0,1.19543139]
[1753375768076,0.66715207,118590.0,118580.0,1.20543139]
[1753375769271,0.66815207,118590.0,118580.0,1.20543139]
[1753375770573,0.66815207,118590.0,118580.0,0.57637965]
[1753375770776,0.66815207,118590.0,118580.0,1.16458965]
[1753375770972,0.66815207,118590.0,118580.0,1.53458965]
[1753375771280,0.66815207,118590.0,118580.0,1.53331965]
[1753375772370,0.66815207,118590.0,118580.0,0.91558965]
[1753375772676,0.66815207,118590.0,118580.0,1.47323965]
[1753375774081,0.60825294,118590.0,118580.0,1.47323965]
[1753375774479,0.60825294,118590.0,118580.0,1.47402965]
[1753375775880,0.60825294,118590.0,118580.0,0.4968933]
[1753375776082,0.60825294,118590.0,118580.0,1.48438965]
[1753375776582,0.60825294,118590.0,118580.0,1.1256933]
[1753375776775,0.60825294,118590.0,118580.0,1.48438965]
[1753375778769,0.60825294,118590.0,118580.0,1.17430965]
[1753375779080,0.60825294,118590.0,118580.0,1.50430965]
[1753375784891,0.67324314,118590.0,118580.0,1.50430965]
[1753375786179,0.51764314,118590.0,118580.0,1.50509965]
[1753375786386,0.24090314,118590.0,118580.0,1.50509965]
[1753375788085,0.04635,118600.0,118590.0,0.17062]
[1753375788285,0.04635,118600.0,118590.0,2.4914527]
[1753375788485,0.10630194,118610.0,118600.0,0.1706058]
[1753375788687,0.10630194,118610.0,118600.0,1.8363985]
[1753375788883,0.17359187,118610.0,118600.0,1.8363985]
[1753375790888,0.17459187,118610.0,118600.0,1.90347785]
[1753375791090,0.17459187,118610.0,118600.0,1.92062828]
[1753375792788,0.16149,118620.0,118610.0,0.2456715]
[1753375793088,0.28870734,118620.0,118610.0,0.93436785]
[1753375793685,0.28870734,118620.0,118610.0,0.94463612]
[1753375793891,0.54142734,118620.0,118610.0,0.94463612]
[1753375794583,0.70794464,118620.0,118610.0,0.94463612]
[1753375794789,0.75529464,118620.0,118610.0,0.94463612]
[1753375795592,0.75529464,118620.0,118610.0,0.58593977]
[1753375795791,0.75529464,118620.0,118610.0,0.93436785]
[1753375796293,0.75529464,118620.0,118610.0,0.5285315]
[1753375796492,0.75529464,118620.0,118610.0,0.71869635]
[1753375796693,0.4656015,118610.0,118600.0,1.40340383]
[1753375796990,1.11172126,118610.0,118600.0,0.87116258]
[1753375797188,0.75302491,118610.0,118600.0,0.87116258]
[1753375797397,1.11172126,118610.0,118600.0,0.87116258]
[1753375797695,1.11172126,118610.0,118600.0,0.25276258]
[1753375797985,0.75302491,118610.0,118600.0,0.87084258]
[1753375798190,1.11172126,118610.0,118600.0,0.87080258]
[1753375798392,1.11172126,118610.0,118600.0,0.25276258]
[1753375798592,1.11172126,118610.0,118600.0,0.87080258]
[1753375798892,1.11172126,118610.0,118600.0,0.70226978]
[1753375799089,0.92164891,118610.0,118600.0,0.68511935]
[1753375799294,1.28034526,118610.0,118600.0,0.68511935]
[1753375799990,1.29983095,118610.0,118600.0,0.68511935]
[1753375800292,1.29983095,118610.0,118580.0,0.2698969]
[1753375800293,0.6271199,118590.0,118580.0,0.2698969]
[1753375800487,0.64660559,118590.0,118580.0,1.37663325]
[1753375800694,0.77337473,118590.0,118580.0,1.37663325]
[1753375801291,0.60481483,118590.0,118580.0,1.0179369]
[1753375801496,0.60481483,118590.0,118580.0,1.43801807]
[1753375801695,0.77337443,118590.0,118580.0,1.43801807]
[1753375801895,0.60481483,118590.0,118580.0,1.43801807]
[1753375802394,0.77337423,118590.0,118580.0,1.43801807]
[1753375802896,0.77337423,118590.0,118580.0,1.50423141]
[1753375803292,0.60481483,118590.0,118580.0,1.50423141]
[1753375803696,0.58532914,118590.0,118580.0,1.50423141]
[1753375804695,0.58480678,118590.0,118580.0,1.50476141]
[1753375805786,0.58480678,118590.0,118580.0,1.13182024]
[1753375806090,0.75336838,118590.0,118580.0,1.55190141]
[1753375806490,0.75336838,118590.0,118580.0,1.50476141]
[1753375806686,0.77286202,118590.0,118580.0,1.50476141]
[1753375806892,0.60430042,118590.0,118580.0,1.50476141]
[1753375807893,0.19261278,118590.0,118580.0,1.55190141]
[1753375808097,0.14626278,118590.0,118580.0,1.55190141]
[1753375808396,0.14626278,118590.0,118580.0,1.42190141]
[1753375808596,0.14626278,118590.0,118580.0,1.73190141]
[1753375809196,0.19261278,118590.0,118580.0,1.73190141]
[1753375809496,0.61248278,118590.0,118580.0,1.73190141]
[1753375809799,0.61248278,118590.0,118580.0,1.73290141]
[1753375810602,0.78104298,118590.0,118580.0,1.73290141]
[1753375810901,0.78104288,118590.0,118580.0,1.73290141]
[1753375811299,0.61248278,118590.0,118580.0,1.73290141]
[1753375812201,0.61248278,118590.0,118580.0,1.31282024]
[1753375812698,0.61248278,118590.0,118580.0,1.73290141]
[1753375813392,0.14626278,118590.0,118580.0,1.73290141]
[1753375815895,0.09859278,118590.0,118580.0,1.73290141]
[1753375816801,0.20543,118610.0,118600.0,0.168546]
[1753375817006,0.04521,118610.0,118600.0,1.23646717]
[1753375817209,0.17202797,118610.0,118600.0,1.23646717]
[1753375818106,0.40912797,118610.0,118600.0,1.23646717]
[1753375818306,0.59113797,118610.0,118600.0,1.23646717]
[1753375819102,0.59313797,118610.0,118600.0,1.23646717]
[1753375819298,0.59313797,118610.0,118600.0,0.816386]
[1753375819605,0.59313797,118610.0,118600.0,1.23646717]
[1753375822505,0.76166987,118610.0,118600.0,1.23646717]
[1753375822694,0.76366987,118610.0,118600.0,1.23646717]
[1753375823099,0.76366987,118610.0,118600.0,1.17471309]
[1753375823506,0.59513797,118610.0,118600.0,1.17471309]
[1753375823703,0.64002988,118610.0,118600.0,1.17471309]
[1753375824104,0.80856168,118610.0,118600.0,1.17471309]
[1753375824305,0.64002988,118610.0,118600.0,1.17471309]
[1753375825807,0.64002988,118610.0,118600.0,1.53304018]
[1753375826002,0.64002988,118610.0,118600.0,1.17471309]
[1753375827302,0.64002988,118610.0,118600.0,1.53304018]
[1753375827705,0.22091988,118610.0,118600.0,1.53304018]
[1753375828101,0.45801988,118610.0,118600.0,1.53304018]
[1753375828306,0.64002988,118610.0,118600.0,1.17471309]
[1753375828808,0.65940781,118610.0,118600.0,1.17471309]
[1753375831710,0.65940781,118610.0,118600.0,1.53304018]
[1753375832111,0.65940781,118610.0,118600.0,1.17471309]
[1753375832713,0.65940518,118610.0,118600.0,1.17471309]
[1753375833716,0.61451327,118610.0,118600.0,1.17471309]
[1753375835512,0.50300327,118610.0,118600.0,1.53304018]
[1753375836317,0.50300327,118610.0,118600.0,0.816386]
[1753375836518,0.50300327,118610.0,118600.0,1.53304018]
[1753375836816,0.61451327,118610.0,118600.0,1.53304018]
[1753375837723,0.19540327,118610.0,118600.0,1.53304018]
[1753375838112,0.19540327,118610.0,118600.0,1.84043156]
[1753375838416,0.19540327,118610.0,118600.0,1.56043156]
[1753375839713,0.19540327,118610.0,118600.0,1.86043156]
[1753375840314,0.15019327,118610.0,118600.0,1.86043156]
[1753375841814,0.19361327,118610.0,118600.0,1.86043156]
[1753375842216,0.19361327,118610.0,118600.0,1.14377738]
[1753375842520,0.19261327,118610.0,118600.0,1.86043156]
[1753375844321,0.12117287,118610.0,118600.0,2.12703156]
[1753375844522,0.04542,118620.0,118610.0,0.1685318]
[1753375844822,0.17180589,118620.0,118610.0,0.88685889]
[1753375845514,0.12638589,118620.0,118610.0,0.88685889]
[1753375845716,0.04557899,118620.0,118610.0,0.88685889]
[1753375845922,9e-08,118620.0,118610.0,1.24518598]
[1753375846117,0.04542,118630.0,118620.0,0.1685175]
[1753375846322,0.09031191,118630.0,118620.0,1.51417365]
[1753375846522,0.17271015,118630.0,118620.0,1.21417365]
[1753375846718,0.17271015,118630.0,118620.0,0.85584656]
[1753375846919,0.17271015,118630.0,118620.0,1.52417365]
[1753375847124,0.49102015,118630.0,118620.0,1.52417365]
[1753375847324,0.60018015,118630.0,118620.0,1.52417365]
[1753375847622,0.60018015,118630.0,118620.0,0.89684459]
[1753375847623,0.76868345,118630.0,118620.0,0.89684459]
[1753375847823,0.76868345,118630.0,118620.0,1.1055575]
[1753375848025,0.81357536,118630.0,118620.0,1.1055575]
[1753375848223,0.81357536,118630.0,118620.0,0.7855175]
[1753375849122,0.81357536,118630.0,118620.0,1.14384459]
[1753375849317,0.81457536,118630.0,118620.0,1.14384459]
[1753375849522,0.81657536,118630.0,118620.0,1.14384459]
[1753375849822,0.81657536,118630.0,118620.0,1.16058449]
[1753375850231,0.64807206,118630.0,118620.0,1.16058449]
[1753375850732,0.81657386,118630.0,118620.0,1.16058449]
[1753375852128,0.81657386,118630.0,118620.0,0.7855166]
[1753375852129,1.13000904,118630.0,118620.0,0.7855166]
[1753375852738,1.17490095,118630.0,118620.0,0.7855166]
[1753375852945,0.81657386,118630.0,118620.0,0.7855166]
[1753375853140,0.81657386,118630.0,118620.0,0.1685166]
[1753375853338,0.81657386,118630.0,118620.0,0.7853566]
[1753375853942,0.81657386,118630.0,118620.0,1.14368369]
[1753375856349,0.64807206,118630.0,118620.0,1.14368369]
[1753375856547,0.66701342,118630.0,118620.0,1.14368369]
[1753375856850,0.83551572,118630.0,118620.0,1.14368369]
[1753375857851,0.83572811,118630.0,118620.0,1.14368369]
[1753375858146,0.83572811,118630.0,118620.0,0.7853566]
[1753375858353,0.83572811,118630.0,118620.0,1.14368369]
[1753375858844,0.83572811,118630.0,118620.0,0.7853566]
[1753375859045,0.83572811,118630.0,118620.0,1.14368369]
[1753375862150,0.83572811,118630.0,118620.0,0.7853566]
[1753375862650,0.83572811,118630.0,118620.0,1.14368369]
[1753375863150,0.83572811,118630.0,118620.0,0.7853566]
[1753375863343,0.83572811,118630.0,118620.0,1.14368369]
[1753375863941,0.83572811,118630.0,118620.0,0.52684369]
[1753375864143,0.47289,118610.0,118600.0,0.62852117]
[1753375864345,0.66036246,118610.0,118600.0,1.62500117]
[1753375864644,0.78644006,118610.0,118600.0,1.62500117]
[1753375864844,0.61790896,118610.0,118600.0,1.62500117]
[1753375865455,0.78644006,118610.0,118600.0,1.26663408]
[1753375865655,0.78644006,118610.0,118600.0,1.62496117]
[1753375865846,0.78644006,118610.0,118600.0,1.62596117]
[1753375866353,0.79621564,118610.0,118600.0,1.62596117]
[1753375866851,0.78644006,118610.0,118600.0,1.62596117]
[1753375868353,0.61790896,118610.0,118600.0,1.62596117]
[1753375869442,0.19043896,118610.0,118600.0,1.98428826]
[1753375869648,0.14501896,118610.0,118600.0,1.98428826]
[1753375871848,0.14501896,118610.0,118600.0,1.98528826]
[1753375873450,0.0950243,118630.0,118620.0,0.1685165]
[1753375873758,0.17591957,118630.0,118620.0,1.54006291]
[1753375874548,0.25726957,118630.0,118620.0,0.54382291]
[1753375874748,0.78092187,118630.0,118620.0,1.51998291]
[1753375874953,0.61241957,118630.0,118620.0,1.51998291]
[1753375875152,0.78092187,118630.0,118620.0,1.51998291]
[1753375876355,0.61241957,118630.0,118620.0,1.51998291]
[1753375876849,0.65752564,118630.0,118620.0,1.51998291]
[1753375877550,0.65752564,118630.0,118620.0,0.90382291]
[1753375877751,0.65752564,118630.0,118620.0,1.52982291]
[1753375877956,0.61241957,118630.0,118620.0,1.52982291]
[1753375878150,0.65752576,118630.0,118620.0,1.52982291]
[1753375878351,0.65752279,118630.0,118620.0,1.52982291]
[1753375878752,0.61241957,118630.0,118620.0,1.52982291]
[1753375879257,0.6575218,118630.0,118620.0,1.52982291]
[1753375883651,0.61241957,118630.0,118620.0,1.52982291]
[1753375884056,0.17891957,118630.0,118620.0,1.52982291]
[1753375884261,0.04992,118640.0,118630.0,0.1685025]
[1753375884461,0.09502223,118650.0,118640.0,0.1684883]
[1753375884662,0.09502223,118650.0,118640.0,3.07382248]
[1753375884859,0.17555998,118650.0,118640.0,3.08371642]
[1753375885064,0.22066221,118650.0,118640.0,3.08371642]
[1753375885253,0.17074221,118650.0,118640.0,3.10078099]
[1753375885458,0.14416491,118650.0,118640.0,3.10078099]
[1753375886960,0.12563998,118650.0,118640.0,3.10078099]
[1753375887365,0.10220378,118650.0,118640.0,3.10078099]
[1753375887558,0.10220378,118650.0,118640.0,3.36738099]
[1753375887559,0.06363978,118650.0,118640.0,3.36738099]
[1753375887764,8e-08,118650.0,118640.0,3.36738099]
[1753375887966,8e-08,118650.0,118640.0,3.78594899]
[1753375888166,8e-08,118650.0,118640.0,3.53594899]
[1753375889269,8e-08,118650.0,118640.0,3.60188704]
[1753375889461,0.04992,118670.0,118660.0,0.1684599]
[1753375889666,0.06840074,118670.0,118660.0,1.52222699]
[1753375889972,0.19511648,118670.0,118660.0,1.52222699]
[1753375890472,0.1951083,118670.0,118660.0,1.52222699]
[1753375890671,0.1951083,118670.0,118660.0,0.90678699]
[1753375890969,0.1951083,118670.0,118660.0,1.52218699]
[1753375891268,0.3663083,118670.0,118660.0,1.52218699]
[1753375891665,0.61113574,118670.0,118660.0,0.90678699]
[1753375891859,0.79804635,118670.0,118660.0,1.48210699]
[1753375892057,0.79804635,118670.0,118660.0,0.86678699]
[1753375892262,0.79804635,118670.0,118660.0,0.1684599]
[1753375892466,0.79804635,118670.0,118660.0,0.7837399]
[1753375892669,0.79804635,118670.0,118660.0,1.1637399]
[1753375893674,0.79804635,118670.0,118660.0,1.52206699]
[1753375894867,0.79804635,118670.0,118660.0,0.1684599]
[1753375895067,0.79804635,118670.0,118660.0,1.14194699]
[1753375895274,0.79804635,118670.0,118660.0,1.46194699]
[1753375895470,0.79804635,118670.0,118660.0,1.1036199]
[1753375895671,0.79804635,118670.0,118660.0,1.46194699]
[1753375896175,0.80004635,118670.0,118660.0,1.46194699]
[1753375897574,0.80004635,118670.0,118660.0,0.84678699]
[1753375897978,0.80004635,118670.0,118660.0,1.46178699]
[1753375898877,0.63160065,118670.0,118660.0,1.46178699]
[1753375899076,0.80004625,118670.0,118660.0,1.46178699]
[1753375899272,0.63160065,118670.0,118660.0,1.46178699]
[1753375899473,0.19810065,118670.0,118660.0,1.46178699]
[1753375901981,0.19710065,118670.0,118660.0,1.46178699]
[1753375903472,0.0001,118680.0,118670.0,0.2473956]
[1753375903677,0.0001,118680.0,118670.0,1.31404978]
[1753375903874,0.12640278,118680.0,118670.0,0.95572269]
[1753375904578,0.12640278,118680.0,118670.0,1.31404978]
[1753375904878,0.12740278,118680.0,118670.0,1.31404978]
[1753375905580,0.12640278,118680.0,118670.0,0.95572269]
[1753375906683,0.12640278,118680.0,118670.0,1.57032269]
[1753375911284,0.12640278,118680.0,118670.0,1.57132269]
[1753375912386,0.12640278,118680.0,118670.0,1.92964978]
[1753375914488,0.07648278,118680.0,118670.0,1.92964978]
[1753375914883,0.12394278,118680.0,118670.0,1.92964978]
[1753375915686,0.14232341,118680.0,118670.0,1.92964978]
[1753375915875,0.14232341,118680.0,118670.0,1.94689994]
[1753375916476,0.09486341,118680.0,118670.0,1.94689994]
[1753375917180,0.09486341,118680.0,118670.0,2.21349994]
[1753375918090,0.09486341,118680.0,118670.0,2.21449994]
[1753375918589,0.03135701,118680.0,118670.0,2.21397994]
[1753375919487,0.03135701,118680.0,118670.0,2.21394526]
[1753375920089,0.00322401,118680.0,118670.0,2.21394526]
[1753375920289,0.06815745,118680.0,118670.0,2.21394526]
[1753375920489,0.04502805,118680.0,118670.0,2.21394526]
[1753375920692,5e-08,118680.0,118670.0,2.21394526]
[1753375920991,5e-08,118680.0,118670.0,1.94734526]
[1753375923094,0.46987223,118700.0,118690.0,0.200197]
[1753375923284,0.46987223,118700.0,118690.0,2.84934861]
[1753375923484,0.4801705,118700.0,118690.0,2.84934861]
[1753375923885,0.49502021,118700.0,118690.0,2.85923601]
[1753375924394,0.49602021,118700.0,118690.0,2.85923601]
[1753375924998,0.01129827,118700.0,118690.0,2.85923601]
[1753375925192,0.48352827,118700.0,118690.0,2.85923601]
[1753375925790,0.48352827,118700.0,118690.0,2.14082892]
[1753375925983,0.65193117,118700.0,118690.0,0.99311601]
[1753375926296,1.01025826,118700.0,118690.0,1.1022171]
[1753375926795,0.71188311,118700.0,118690.0,1.1022171]
[1753375926998,0.65193117,118700.0,118690.0,1.1022171]
[1753375929297,0.65193117,118700.0,118690.0,1.1189873]
[1753375929896,0.65293117,118700.0,118690.0,1.1189873]
[1753375930801,0.65293117,118700.0,118690.0,1.47731439]
[1753375931198,0.65293117,118700.0,118690.0,1.1189873]
[1753375931402,0.69801997,118700.0,118690.0,1.1189873]
[1753375931700,0.69801997,118700.0,118690.0,1.47731439]
[1753375932401,0.71605387,118700.0,118690.0,1.47731439]
[1753375932600,0.71605387,118700.0,118690.0,1.1189873]
[1753375932802,0.71605387,118700.0,118690.0,0.7989873]
[1753375933398,0.67096507,118700.0,118690.0,0.7989873]
[1753375934204,0.67096507,118700.0,118690.0,0.8291373]
[1753375934500,0.67096507,118700.0,118690.0,1.18746439]
[1753375936604,0.67096507,118700.0,118690.0,0.8291373]
[1753375936903,0.67096507,118700.0,118690.0,1.18746439]
[1753375942303,0.67096507,118700.0,118690.0,1.19746439]
[1753375942508,0.67096537,118700.0,118690.0,0.8767973]
[1753375942708,0.67096537,118700.0,118690.0,1.23512439]
[1753375942910,0.67096537,118700.0,118690.0,1.19746439]
[1753375943305,0.67096537,118700.0,118690.0,0.58366439]
[1753375943509,0.65293147,118700.0,118690.0,1.19706439]
[1753375943810,0.65293147,118700.0,118690.0,1.49706439]
[1753375946711,0.65293147,118700.0,118690.0,1.1387373]
[1753375946908,0.65293147,118700.0,118690.0,1.49706439]
[1753375948514,0.65293147,118700.0,118690.0,1.1387373]
[1753375948709,0.65293147,118700.0,118690.0,1.49706439]
[1753375950612,0.65293147,118700.0,118690.0,1.1387373]
[1753375950906,0.65293147,118700.0,118690.0,0.39847709]
[1753375951115,1.01125856,118700.0,118690.0,0.6232]
[1753375952106,0.6428212,118680.0,118670.0,0.18664958]
[1753375952309,1.00114829,118680.0,118670.0,0.93416]
[1753375952509,1.12726402,118680.0,118670.0,0.93416]
[1753375952707,1.1461647,118680.0,118670.0,0.321]
[1753375952912,1.50449179,118680.0,118670.0,0.93416]
[1753375953116,1.1461647,118680.0,118670.0,0.93416]
[1753375953317,1.15609168,118680.0,118670.0,0.321]
[1753375953511,0.4107996,118660.0,118650.0,0.1684681]
[1753375953712,1.02007737,118660.0,118650.0,0.4884681]
[1753375953916,1.14631481,118660.0,118650.0,1.1015881]
[1753375956019,1.14631481,118660.0,118650.0,0.93308]
[1753375956219,1.14631481,118660.0,118650.0,1.1015539]
[1753375958828,1.14631481,118660.0,118650.0,0.93308]
[1753375959228,1.31486681,118660.0,118650.0,0.62308]
[1753375959429,1.31486681,118660.0,118650.0,0.7915539]
[1753375961425,0.95653972,118660.0,118650.0,0.7915539]
[1753375961633,0.83310431,118660.0,118650.0,1.18135099]
[1753375962230,0.83310431,118660.0,118650.0,1.21901099]
[1753375962530,0.83310431,118660.0,118650.0,0.8606839]
[1753375962730,0.83310431,118660.0,118650.0,0.8230239]
[1753375963128,0.66464471,118660.0,118650.0,1.21901099]
[1753375963332,0.61952812,118660.0,118650.0,1.55901099]
[1753375963524,0.78798792,118660.0,118650.0,1.2006839]
[1753375963730,0.78798792,118660.0,118650.0,1.55901099]
[1753375963926,0.78798792,118660.0,118650.0,1.20901099]
[1753375965035,0.78798792,118660.0,118650.0,0.8506839]
[1753375965234,0.78798792,118660.0,118650.0,1.20901099]
[1753375967835,0.78798792,118660.0,118650.0,0.8506839]
[1753375968136,0.78798792,118660.0,118650.0,1.20901099]
[1753375968834,0.61952812,118660.0,118650.0,1.20901099]
[1753375969832,0.61952812,118660.0,118650.0,0.8506839]
[1753375970035,0.61952812,118660.0,118650.0,1.20901099]
[1753375970829,0.61952812,118660.0,118650.0,0.8506839]
[1753375971037,0.61952812,118660.0,118650.0,1.20901099]
[1753375972635,0.61952812,118660.0,118650.0,0.8506839]
[1753375972837,0.61952812,118660.0,118650.0,1.20901099]
[1753375974137,0.78798792,118660.0,118650.0,1.20901099]
[1753375974931,0.78798792,118660.0,118650.0,0.8506839]
[1753375975227,0.78798792,118660.0,118650.0,1.20901099]
[1753375979141,0.78798792,118660.0,118650.0,0.8506839]
[1753375979341,0.78798792,118660.0,118650.0,0.8501239]
[1753375979838,0.78798792,118660.0,118650.0,1.20845099]
[1753375980241,0.78798792,118660.0,118650.0,0.8501239]
[1753375980542,0.78798792,118660.0,118650.0,1.20845099]
[1753375983240,0.78798792,118660.0,118650.0,0.8501239]
[1753375983443,0.78798792,118660.0,118650.0,1.20845099]
[1753375984138,0.61952812,118660.0,118650.0,1.58845099]
[1753375984337,0.61952812,118660.0,118650.0,1.20845099]
[1753375984545,0.19279812,118660.0,118650.0,1.54845099]
[1753375984743,0.14513812,118660.0,118650.0,0.93593099]
[1753375984944,0.14513812,118660.0,118650.0,1.54829099]
[1753375986346,0.14513812,118660.0,118650.0,1.56530036]
[1753375986741,0.14513812,118660.0,118650.0,1.56730036]
[1753375988249,0.14513812,118660.0,118650.0,1.63620207]
[1753375989643,0.09547812,118660.0,118650.0,1.63620207]
[1753375990147,0.09547812,118660.0,118650.0,1.63941814]
[1753375997751,2e-08,118660.0,118650.0,1.63941814]
[1753375998059,2e-08,118660.0,118650.0,1.80797013]
[1753375999952,0.04591,118690.0,118680.0,0.1684312]
[1753376000156,0.04591,118690.0,118680.0,1.49843829]
[1753376000457,0.17243409,118690.0,118680.0,1.49843829]
[1753376000657,0.17243409,118690.0,118680.0,1.5079236]
[1753376001647,0.19156667,118690.0,118680.0,1.86625069]
[1753376002359,0.19156667,118690.0,118680.0,1.5079236]
[1753376002660,0.54648667,118690.0,118680.0,1.5079236]
[1753376002860,0.61663667,118690.0,118680.0,1.5079236]
[1753376004655,0.61663667,118690.0,118680.0,0.8962436]
[1753376004855,0.61663667,118690.0,118680.0,1.5076836]
[1753376006658,0.61663667,118690.0,118680.0,0.8962436]
[1753376006963,0.61663667,118690.0,118680.0,1.5076036]
[1753376007856,0.61663667,118690.0,118680.0,0.8962436]
[1753376008052,0.61663667,118690.0,118680.0,1.5075236]
[1753376008261,0.61663667,118690.0,118680.0,1.5074436]
[1753376009660,0.61663667,118690.0,118680.0,1.5074036]
[1753376010859,0.61663667,118690.0,118680.0,1.14907651]
[1753376011066,0.61663667,118690.0,118680.0,1.5074036]
[1753376011667,0.61663667,118690.0,118680.0,1.1474036]
[1753376011961,0.61663667,118690.0,118680.0,1.4674036]
[1753376012167,0.61663667,118690.0,118680.0,1.1474036]
[1753376013868,0.61663667,118690.0,118680.0,1.4874036]
[1753376018364,0.66175326,118690.0,118680.0,1.4874036]
[1753376019872,0.83017026,118690.0,118680.0,1.4874036]
[1753376020668,0.83017026,118690.0,118680.0,0.8762436]
[1753376020873,0.83017026,118690.0,118680.0,1.4668036]
[1753376021479,0.78505367,118690.0,118680.0,1.4668036]
[1753376023476,0.61663667,118690.0,118680.0,1.4668036]
[1753376023676,0.61663667,118690.0,118680.0,1.82513069]
[1753376024577,0.61663667,118690.0,118680.0,1.4668036]
[1753376024776,0.37973667,118690.0,118680.0,1.4668036]
[1753376025179,0.54023667,118690.0,118680.0,1.4668036]
[1753376025882,0.54023667,118690.0,118680.0,1.82513069]
[1753376028080,0.19156667,118690.0,118680.0,1.82513069]
[1753376029275,0.19156667,118690.0,118680.0,1.84223215]
[1753376030786,0.19156667,118690.0,118680.0,1.84175215]